{"text_format":"3","workbook":"xlsx","n_sheets":2,"sheets":["Παρακολούθηση απαντ. πρόσκλησης","Σύνοψη απαντήσεων σε πρόσκληση"],"not_rendered":{"charts":2,"defined_names":22},"read":"whole","date_system":"1900"}

{"sheet":"Παρακολούθηση απαντ. πρόσκλησης","index":0,"n_rows":15,"n_cols":15,"rows_kept":15,"merged":[[0,3,0,4],[0,5,0,7]]}
[{"$nulls":5},"ΣΥΝΟΨΗ ΑΠΑΝΤΗΣΕΩΝ"]
[null,"ΗΜΕΡΟΜΗΝΙΑ ΓΑΜΟΥ",null,"παρακολούθηση προκλήσεων γάμου"]
[null,{"$f":"TODAY()+283","v":"2023-05-19"},null,"ΟΝΟΜΑ ΠΡΟΣΚΕΚΛΗΜΕΝΟΥ","ΣΤΑΛΘΗΚΕ;","ΑΠΑΝΤΗΣΗ","ΣΥΝΟΛΟ ΑΤΟΜΩΝ","ΠΡΟΣΚΕΚΛΗΜΕΝΟΣ","ΣΧΕΣΗ","ΔΙΕΥΘΥΝΣΗ","ΠΟΛΗ","ΝΟΜΟΣ","Ταχ. κώδικας","ΤΗΛΕΦΩΝΟ","EMAIL ΕΠΙΚΟΙΝΩΝΊΑΣ"]
[null,"ΗΜΕΡΕΣ ΠΟΥ ΑΠΟΜΕΝΟΥΝ",null,"Όνομα 1","Ναι","Ναι",1,"Μελλόνυμφος 1","Αδελφός","Διεύθυνση","Πόλη","Νομός","Ταχ. κώδικας","Τηλέφωνο","someone@example.com"]
[null,{"$f":"ΗμέρεςΠουΑπομένουν","v":283},null,"Όνομα 2","Ναι","Όχι",3,"Μελλόνυμφος 1","Φίλος","Διεύθυνση","Πόλη","Νομός","Ταχ. κώδικας","Τηλέφωνο","someone@example.com"]
[null,"ΘΑ ΠΑΡΕΥΡΕΘΕΙ",null,"Όνομα 3","Ναι","Ναι",1,"Άλλο","Φίλος","Διεύθυνση","Πόλη","Νομός","Ταχ. κώδικας","Τηλέφωνο","someone@example.com"]
[null,{"$f":"ΣύνολοΠουΘαΠαρευρεθούν","v":12},null,"Όνομα 4","Ναι","Όχι",2,"Μελλόνυμφος 2","Φίλος","Διεύθυνση","Πόλη","Νομός","Ταχ. κώδικας","Τηλέφωνο","someone@example.com"]
[null,"ΔΕΝ ΘΑ ΠΑΡΕΥΡΕΘΕΙ",null,"Όνομα 5","Ναι","Ναι",2,"Μελλόνυμφος 2","Φίλος","Διεύθυνση","Πόλη","Νομός","Ταχ. κώδικας","Τηλέφωνο","someone@example.com"]
[null,{"$f":"ΣύνολοΠουΔενΘαΠαρευρεθούν","v":6},null,"Όνομα 6","Ναι","Αβέβαιος",null,"Άλλο","Φίλος","Διεύθυνση","Πόλη","Νομός","Ταχ. κώδικας","Τηλέφωνο","someone@example.com"]
[null,"ΣΕ ΕΚΚΡΕΜΟΤΗΤΑ",null,"Όνομα 7","Ναι","Ναι",2,"Μελλόνυμφος 2","Φίλος","Διεύθυνση","Πόλη","Νομός","Ταχ. κώδικας","Τηλέφωνο","someone@example.com"]
[null,{"$f":"ΣύνολοΕκκρεμών","v":1},null,"Όνομα 8","Ναι","Όχι",1,"Άλλο","Φίλος","Διεύθυνση","Πόλη","Νομός","Ταχ. κώδικας","Τηλέφωνο","someone@example.com"]
[{"$nulls":3},"Όνομα 9","Ναι","Ναι",4,"Μελλόνυμφος 1","Φίλος","Διεύθυνση","Πόλη","Νομός","Ταχ. κώδικας","Τηλέφωνο","someone@example.com"]
[{"$nulls":3},"Όνομα 10","Ναι","Ναι",2,"Μελλόνυμφος 1","Φίλος","Διεύθυνση","Πόλη","Νομός","Ταχ. κώδικας","Τηλέφωνο","someone@example.com"]
[{"$nulls":3},"Όνομα 11","Ναι",null,null,"Μελλόνυμφος 2","Αδελφός","Διεύθυνση","Πόλη","Νομός","Ταχ. κώδικας","Τηλέφωνο","someone@example.com"]
[{"$nulls":3},"ΣΥΝΟΛΑ:",{"$f":"COUNTIF('Παρακολούθηση απαντ. πρόσκλησης'!$E$4:$E$14,\"Ναι\")","v":11},{"$f":"COUNTA('Παρακολούθηση απαντ. πρόσκλησης'!$F$4:$F$14)","v":10},{"$f":"SUBTOTAL(109,ΠροσκΤραπ[ΣΥΝΟΛΟ ΑΤΟΜΩΝ])","v":18}]

{"sheet":"Σύνοψη απαντήσεων σε πρόσκληση","index":1,"n_rows":11,"n_cols":15,"rows_kept":11,"merged":[[0,3,0,4],[0,5,0,8],[2,3,6,3],[2,4,6,4],[7,3,11,3],[7,4,11,4]]}
[{"$nulls":3},"ΠΑΡΑΚΟΛΟΥΘΗΣΗ ΑΠΑΝΤΗΣΕΩΝ ΣΕ ΠΡΟΣΚΛΗΣΕΙΣ"]
[null,"ΗΜΕΡΟΜΗΝΙΑ ΓΑΜΟΥ",null,"σύνοψη απαντήσεων σε πρόσκληση",{"$nulls":10},"σημειώσεις"]
[null,{"$f":"ΗμερομηνίαΓάμου","v":"2023-05-19"},null,"ΝΑΙ","Σε αυτό το κελί υπάρχει ένα γράφημα ομαδοποιημένων ράβδων που δείχνει τους τύπους προσκεκλημένων που απάντησαν \"Ναι\"."]
[null,"ΗΜΕΡΕΣ ΠΟΥ ΑΠΟΜΕΝΟΥΝ",{"$nulls":3},"ΑΛΛΟ",{"$f":"IFERROR(SUMIFS(ΠροσκΤραπ[ΣΥΝΟΛΟ ΑΤΟΜΩΝ],ΠροσκΤραπ[ΠΡΟΣΚΕΚΛΗΜΕΝΟΣ],\"=Άλλο\",ΠροσκΤραπ[ΑΠΑΝΤΗΣΗ],\"Ναι\"),0)","v":1},{"$f":"ΠροσκΤραπ[[#Totals],[ΣΤΑΛΘΗΚΕ;]]","v":11}]
[null,{"$f":"ΗμέρεςΠουΑπομένουν","v":283},{"$nulls":3},"ΜΕΛΛΟΝΥΜΦΟΣ 2",{"$f":"IFERROR(SUMIFS(ΠροσκΤραπ[ΣΥΝΟΛΟ ΑΤΟΜΩΝ],ΠροσκΤραπ[ΠΡΟΣΚΕΚΛΗΜΕΝΟΣ],\"=Μελλόνυμφος 2\",ΠροσκΤραπ[ΑΠΑΝΤΗΣΗ],\"Ναι\"),0)","v":4},{"$f":"ΠροσκΤραπ[[#Totals],[ΣΤΑΛΘΗΚΕ;]]","v":11}]
[null,"ΘΑ ΠΑΡΕΥΡΕΘΕΙ",{"$nulls":3},"ΜΕΛΛΟΝΥΜΦΟΣ 1",{"$f":"IFERROR(SUMIFS(ΠροσκΤραπ[ΣΥΝΟΛΟ ΑΤΟΜΩΝ],ΠροσκΤραπ[ΠΡΟΣΚΕΚΛΗΜΕΝΟΣ],\"=Μελλόνυμφος 1\",ΠροσκΤραπ[ΑΠΑΝΤΗΣΗ],\"Ναι\"),0)","v":7},{"$f":"ΠροσκΤραπ[[#Totals],[ΣΤΑΛΘΗΚΕ;]]","v":11}]
[null,{"$f":"ΣύνολοΠουΘαΠαρευρεθούν","v":12}]
[null,"ΔΕΝ ΘΑ ΠΑΡΕΥΡΕΘΕΙ",null,"ΟΧΙ","Σε αυτό το κελί υπάρχει ένα γράφημα ομαδοποιημένων ράβδων που δείχνει τους τύπους προσκεκλημένων που απάντησαν \"Όχι\"."]
[null,{"$f":"ΣύνολοΠουΔενΘαΠαρευρεθούν","v":6},{"$nulls":3},"ΑΛΛΟ",{"$f":"IFERROR(SUMIFS(ΠροσκΤραπ[ΣΥΝΟΛΟ ΑΤΟΜΩΝ],ΠροσκΤραπ[ΠΡΟΣΚΕΚΛΗΜΕΝΟΣ],\"=Άλλο\",ΠροσκΤραπ[ΑΠΑΝΤΗΣΗ],\"Όχι\"),0)","v":1},{"$f":"ΠροσκΤραπ[[#Totals],[ΣΤΑΛΘΗΚΕ;]]","v":11}]
[null,"ΣΕ ΕΚΚΡΕΜΟΤΗΤΑ",{"$nulls":3},"ΜΕΛΛΟΝΥΜΦΟΣ 2",{"$f":"IFERROR(SUMIFS(ΠροσκΤραπ[ΣΥΝΟΛΟ ΑΤΟΜΩΝ],ΠροσκΤραπ[ΠΡΟΣΚΕΚΛΗΜΕΝΟΣ],\"=Μελλόνυμφος 2\",ΠροσκΤραπ[ΑΠΑΝΤΗΣΗ],\"Όχι\"),0)","v":2},{"$f":"ΠροσκΤραπ[[#Totals],[ΣΤΑΛΘΗΚΕ;]]","v":11}]
[null,{"$f":"ΣύνολοΕκκρεμών","v":1},{"$nulls":3},"ΜΕΛΛΟΝΥΜΦΟΣ 1",{"$f":"IFERROR(SUMIFS(ΠροσκΤραπ[ΣΥΝΟΛΟ ΑΤΟΜΩΝ],ΠροσκΤραπ[ΠΡΟΣΚΕΚΛΗΜΕΝΟΣ],\"=Μελλόνυμφος 1\",ΠροσκΤραπ[ΑΠΑΝΤΗΣΗ],\"Όχι\"),0)","v":3},{"$f":"ΠροσκΤραπ[[#Totals],[ΣΤΑΛΘΗΚΕ;]]","v":11}]